bitfinex-derivatives/quotes_BTCF0:USTF0_20260107
["timestamp","ask_amount","ask_price","bid_price","bid_amount"]
[1767750526403,0.11145118,92474.0,92461.0,0.010821]
[1767750526698,0.09218782,92472.0,92461.0,0.010821]
[1767750526900,0.10895728,92472.0,92461.0,0.010821]
[1767750527096,0.00010342,92477.0,92461.0,0.00587424]
[1767750527397,0.00010342,92477.0,92460.0,0.19563707]
[1767750527398,0.11145118,92476.0,92460.0,0.19563707]
[1767750527594,0.09218782,92474.0,92463.0,0.010821]
[1767750527793,0.00010342,92477.0,92452.0,0.05908969]
[1767750527794,0.09218782,92468.0,92452.0,0.05908969]
[1767750527995,0.09218782,92468.0,92458.0,0.092]
[1767750528698,0.09218782,92468.0,92461.0,0.010821]
[1767750529098,0.01693887,92477.0,92450.0,0.05878748]
[1767750529099,0.09218782,92466.0,92450.0,0.05878748]
[1767750529299,0.09218782,92461.0,92454.0,0.010822]
[1767750529595,0.11145118,92457.0,92448.0,0.05233274]
[1767750529790,0.00010342,92460.0,92448.0,0.05233274]
[1767750529791,0.01926336,92454.0,92448.0,0.04151074]
[1767750529997,0.01926336,92459.0,92449.0,0.010822]
[1767750530197,0.01926336,92459.0,92451.0,0.010822]
[1767750530606,0.00010342,92460.0,92455.0,0.010821]
[1767750530902,0.01926336,92467.0,92452.0,0.010822]
[1767750531904,0.01926336,92467.0,92454.0,0.010822]
[1767750532091,0.01926336,92467.0,92456.0,0.010821]
[1767750532287,0.01926336,92463.0,92451.0,0.010822]
[1767750533097,0.09218782,92461.0,92448.0,0.05233274]
[1767750533306,0.01926336,92463.0,92451.0,0.010822]
[1767750533800,0.01926336,92461.0,92451.0,0.010822]
[1767750534197,0.09218782,92462.0,92451.0,0.010822]
[1767750534598,0.09218782,92462.0,92453.0,0.010822]
[1767750534904,0.11145118,92466.0,92452.0,0.010822]
[1767750535201,0.01926336,92464.0,92452.0,0.010822]
[1767750535903,0.01926336,92464.0,92454.0,0.010822]
[1767750536402,0.01926336,92467.0,92456.0,0.010821]
[1767750536600,0.01926336,92465.0,92453.0,0.010822]
[1767750536900,0.01926336,92464.0,92455.0,0.010821]
[1767750537101,0.01926336,92462.0,92452.0,0.010822]
[1767750537702,0.09218782,92463.0,92452.0,0.010822]
[1767750537896,0.11145118,92462.0,92452.0,0.010822]
[1767750538097,0.11145118,92460.0,92449.0,0.010822]
[1767750538295,0.01926336,92455.0,92448.0,0.04151074]
[1767750538695,0.0235581,92451.0,92446.0,8.929e-05]
[1767750538902,0.0235581,92451.0,92436.0,0.092]
[1767750538903,0.09086941,92451.0,92436.0,0.092]
[1767750539096,0.11442751,92454.0,92436.0,0.092]
[1767750539298,0.0235581,92452.0,92436.0,0.15101256]
[1767750539498,0.0235581,92450.0,92437.0,0.010824]
[1767750539801,0.0235581,92446.0,92437.0,0.010824]
[1767750540302,0.02364739,92449.0,92439.0,0.010823]
[1767750540502,0.09086941,92457.0,92445.0,0.010823]
[1767750540708,0.11442751,92462.0,92449.0,0.010822]
[1767750541205,0.01683545,92477.0,92463.0,0.010821]
[1767750541206,0.092,92473.0,92463.0,0.010821]
[1767750541412,0.092,92481.0,92465.0,0.0125582]
[1767750541604,0.092,92484.0,92465.0,0.0125582]
[1767750542006,0.092,92484.0,92464.0,0.09895399]
[1767750542205,0.23068412,92484.0,92464.0,0.09895399]
[1767750542521,0.02326372,92482.0,92467.0,0.01082]
[1767750542712,0.12173175,92482.0,92467.0,0.01082]
[1767750542912,0.12173175,92481.0,92467.0,0.01082]
[1767750543708,0.12173175,92481.0,92459.0,0.092]
[1767750543709,0.09846803,92487.0,92466.0,0.01173105]
[1767750543913,0.00216243,92489.0,92470.0,0.01173105]
[1767750543914,0.09416243,92489.0,92470.0,0.01173105]
[1767750544109,0.23284485,92489.0,92466.0,0.01071123]
[1767750544306,0.12173175,92488.0,92466.0,0.01071123]
[1767750544503,0.02326372,92487.0,92466.0,0.01071123]
[1767750545213,0.12173175,92486.0,92468.0,0.01082]
[1767750545712,0.12173175,92486.0,92463.0,0.1094187]
[1767750546112,0.12173175,92486.0,92471.0,0.01082]
[1767750546305,0.12173175,92486.0,92463.0,0.1094187]
[1767750546504,0.12173175,92486.0,92464.0,0.01033343]
[1767750546705,0.02326372,92488.0,92467.0,0.01033343]
[1767750546905,0.12173175,92487.0,92467.0,0.01033343]
[1767750547110,0.00216243,92489.0,92476.0,0.010819]
[1767750547311,0.092,92501.0,92485.0,0.010818]
[1767750547508,0.102816,92504.0,92487.0,0.010818]
[1767750547815,0.010816,92504.0,92484.0,0.010818]
[1767750548013,0.027983,92504.0,92484.0,0.010818]
[1767750548213,0.010816,92504.0,92484.0,0.010818]
[1767750548405,0.010816,92501.0,92484.0,0.010818]
[1767750548606,0.010816,92499.0,92481.0,0.010818]
[1767750549105,0.010816,92502.0,92483.0,0.010818]
[1767750549306,0.010816,92502.0,92485.0,0.010818]
[1767750549614,0.03407972,92502.0,92485.0,0.010818]
[1767750550115,0.02326372,92501.0,92484.0,0.010818]
[1767750550413,0.010816,92500.0,92484.0,0.010818]
[1767750550818,0.03407972,92500.0,92484.0,0.010818]
[1767750551114,0.02326372,92500.0,92484.0,0.010818]
[1767750554322,0.02326372,92500.0,92480.0,0.092]
[1767750554718,0.010816,92499.0,92483.0,0.010818]
[1767750555619,0.12173175,92500.0,92485.0,0.010818]
[1767750555917,0.09846803,92500.0,92485.0,0.010818]
[1767750556415,0.01697583,92504.0,92488.0,0.010818]
[1767750556717,0.010816,92501.0,92485.0,0.02347479]
[1767750556919,0.010816,92501.0,92486.0,0.010818]
[1767750558021,0.02326372,92502.0,92482.0,0.02347479]
[1767750558411,0.03407972,92502.0,92482.0,0.02347479]
[1767750558922,0.03407972,92502.0,92488.0,0.010818]
[1767750559118,0.01707328,92504.0,92486.0,0.02347479]
[1767750559322,0.10928403,92505.0,92486.0,0.02347479]
[1767750559629,0.12173175,92510.0,92490.0,0.02347479]
[1767750559922,0.010816,92507.0,92492.0,0.010817]
[1767750561825,0.13905654,92510.0,92492.0,0.010817]
[1767750561826,0.12173175,92509.0,92492.0,0.010817]
[1767750562424,0.12173175,92505.0,92490.0,0.102817]
[1767750562625,0.12173175,92500.0,92490.0,0.092]
[1767750563514,0.09846803,92500.0,92490.0,0.092]
[1767750566627,0.13254775,92507.0,92490.0,0.092]
[1767750566832,0.02326372,92506.0,92495.0,0.010817]
[1767750567021,0.09846803,92507.0,92495.0,0.010817]
[1767750567216,0.12173175,92513.0,92499.0,0.010816]
[1767750567430,0.02326372,92512.0,92501.0,0.010816]
[1767750567628,0.02326372,92511.0,92492.0,0.02347479]
[1767750567931,0.02326372,92511.0,92498.0,0.010816]
[1767750568230,0.09846803,92512.0,92500.0,0.010816]
[1767750568634,0.09846803,92512.0,92502.0,0.010816]
[1767750569026,0.09846803,92512.0,92499.0,0.010816]
[1767750569228,0.092,92514.0,92483.0,0.010818]
[1767750569229,0.02326372,92495.0,92483.0,0.010818]
[1767750569428,0.09846803,92496.0,92485.0,0.010818]
[1767750569939,0.02326372,92499.0,92485.0,0.010818]
[1767750570340,0.010816,92501.0,92487.0,0.010818]
[1767750570535,0.010816,92499.0,92484.0,0.102818]
[1767750571039,0.010816,92499.0,92486.0,0.010818]
[1767750572034,0.010816,92502.0,92486.0,0.010818]
[1767750572236,0.13190685,92502.0,92486.0,0.010818]
[1767750575837,0.12109085,92501.0,92486.0,0.010818]
[1767750576646,0.010816,92500.0,92486.0,0.010818]
[1767750576847,0.13190685,92500.0,92486.0,0.010818]
[1767750577236,0.13190685,92500.0,92487.0,0.092]
[1767750577435,0.12109085,92490.0,92479.0,0.05886226]
[1767750577734,0.12109085,92477.0,92471.0,0.0665177]
[1767750577941,0.09584437,92476.0,92463.0,0.092]
[1767750578442,0.09584437,92476.0,92466.0,0.01082]
[1767750579746,0.09584437,92476.0,92463.0,0.092]
[1767750579953,0.09584437,92476.0,92469.0,0.01082]
[1767750580337,0.09584437,92476.0,92466.0,0.01082]
[1767750580540,0.12109085,92476.0,92466.0,0.01082]
[1767750580850,0.12109085,92476.0,92463.0,0.102821]
[1767750581055,0.09584437,92472.0,92463.0,0.092]
[1767750581859,0.09584437,92465.0,92453.0,0.010822]
[1767750582043,0.09584437,92465.0,92453.0,0.01070086]
[1767750582544,0.09584437,92465.0,92452.0,0.092]
[1767750582545,0.09584437,92465.0,92457.0,0.010821]
[1767750582743,0.02524648,92469.0,92457.0,0.010821]
[1767750583344,0.09584437,92470.0,92457.0,0.010821]
[1767750583546,0.09584437,92475.0,92456.0,0.02468902]
[1767750583747,0.10666337,92475.0,92461.0,0.010821]
[1767750584143,0.01082,92472.0,92458.0,0.010821]
[1767750584347,0.09584437,92470.0,92458.0,0.010821]
[1767750584550,0.09584437,92470.0,92452.0,0.11668902]
[1767750584858,0.13191085,92470.0,92455.0,0.010821]
[1767750585862,0.13191085,92470.0,92457.0,0.010821]
[1767750586050,0.09584437,92470.0,92457.0,0.010821]
[1767750587367,0.09584437,92470.0,92459.0,0.010821]
[1767750589155,0.12109085,92470.0,92456.0,0.010821]
[1767750589356,0.09584437,92469.0,92456.0,0.010821]
[1767750590163,0.12109085,92469.0,92458.0,0.010821]
[1767750592654,0.09584437,92469.0,92452.0,0.092]
[1767750593667,0.09584437,92474.0,92465.0,0.01082]
[1767750593863,0.12109085,92474.0,92465.0,0.01082]
[1767750594064,0.09584437,92472.0,92465.0,0.01082]
[1767750594258,0.12109085,92472.0,92462.0,0.010821]
[1767750594468,0.12109085,92470.0,92462.0,0.010821]
[1767750594965,0.09584437,92470.0,92462.0,0.010821]
[1767750595461,0.10666337,92475.0,92462.0,0.010821]
[1767750595663,0.12109085,92474.0,92464.0,0.01082]
[1767750595863,0.12109085,92473.0,92464.0,0.01082]
[1767750596466,0.09584437,92472.0,92464.0,0.01082]
[1767750599763,0.09412341,92471.0,92461.0,0.010821]
[1767750600068,0.09412341,92466.0,92452.0,0.092]
[1767750600268,0.09412341,92466.0,92455.0,0.010821]
[1767750600967,0.09412341,92465.0,92453.0,0.010822]
[1767750601965,0.09890036,92461.0,92452.0,0.092]
[1767750602361,0.09890036,92461.0,92452.0,0.102822]
[1767750602561,0.01082,92465.0,92452.0,0.092]
[1767750602867,0.09890036,92464.0,92452.0,0.092]
[1767750603066,0.12130498,92452.0,92447.0,0.010822]
[1767750603267,0.09890036,92450.0,92444.0,0.06061088]
[1767750603470,0.010821,92464.0,92444.0,0.092]
[1767750604069,0.010821,92462.0,92444.0,0.102823]
[1767750604672,0.01082,92465.0,92446.0,0.010823]
[1767750605063,0.01082,92465.0,92448.0,0.010822]
[1767750605671,0.02240462,92461.0,92448.0,0.010822]
[1767750605876,0.12130498,92461.0,92448.0,0.010822]
[1767750606066,0.12130498,92460.0,92448.0,0.010822]
[1767750606281,0.12130498,92458.0,92445.0,0.010823]
[1767750607271,0.12130498,92453.0,92444.0,0.092]
[1767750607662,0.12130498,92452.0,92442.0,0.010823]
[1767750607969,0.02240462,92451.0,92442.0,0.010823]
[1767750608273,0.09890036,92433.0,92424.0,0.010825]
[1767750608479,0.0051308,92435.0,92424.0,0.010825]
[1767750608776,0.09890036,92437.0,92424.0,0.010825]
[1767750608966,0.09890036,92437.0,92427.0,0.010825]
[1767750609170,0.09890036,92443.0,92427.0,0.010825]
[1767750609376,0.00839978,92442.0,92427.0,0.010825]
[1767750609571,0.00839978,92442.0,92430.0,0.10383002]
[1767750609760,0.09890036,92443.0,92430.0,0.10383002]
[1767750610171,0.09890036,92443.0,92427.0,0.010825]
[1767750610371,0.10655088,92443.0,92430.0,0.10383002]
[1767750611269,0.09890036,92443.0,92430.0,0.10383002]
[1767750611466,0.092,92451.0,92433.0,0.03491042]
[1767750611662,0.09890036,92459.0,92444.0,0.010823]
[1767750611863,0.19094036,92465.0,92449.0,0.10383002]
[1767750612064,0.19094036,92465.0,92449.0,0.11465202]
[1767750612364,0.00711913,92464.0,92450.0,0.10383002]
[1767750613076,0.10601949,92464.0,92444.0,0.010823]
[1767750613472,0.00685008,92462.0,92444.0,0.010823]
[1767750613679,0.00685008,92460.0,92441.0,0.09906216]
[1767750613878,0.00685008,92460.0,92442.0,0.010823]
[1767750614081,0.00685008,92460.0,92445.0,0.010823]
[1767750614471,0.00852942,92457.0,92441.0,0.010823]
[1767750614782,0.00852942,92461.0,92444.0,0.010823]
[1767750615082,0.09890036,92464.0,92447.0,0.010822]
[1767750615274,0.01298043,92489.0,92450.0,0.10383002]
[1767750615275,0.00825568,92468.0,92450.0,0.10383002]
[1767750615475,0.09204,92467.0,92450.0,0.10383002]
[1767750615680,0.09204,92467.0,92450.0,0.11465202]
[1767750616069,0.09204,92467.0,92447.0,0.02408642]
[1767750616070,0.00885829,92465.0,92447.0,0.010822]
[1767750616269,0.00885829,92464.0,92450.0,0.10383002]
[1767750616564,0.00885829,92464.0,92447.0,0.010822]
[1767750617378,0.00885829,92464.0,92449.0,0.010822]
[1767750617675,0.00858346,92462.0,92446.0,0.09204]
[1767750617865,0.00216313,92459.0,92446.0,0.09204]
[1767750618071,0.00858346,92457.0,92446.0,0.09204]
[1767750618275,0.00830954,92453.0,92438.0,0.010823]
[1767750618497,0.1072099,92447.0,92436.0,0.09204]
[1767750618782,0.09890036,92447.0,92435.0,0.09204]
[1767750620379,0.10767402,92447.0,92431.0,0.010824]
[1767750620679,0.10767402,92447.0,92425.0,0.05971605]
[1767750620680,0.21746207,92488.0,92445.0,0.12314858]
[1767750620978,0.21746207,92488.0,92450.0,0.09906216]
[1767750620979,0.09890036,92476.0,92450.0,0.09906216]
[1767750621178,0.09890036,92476.0,92446.0,0.09204]
[1767750621381,0.09890036,92476.0,92458.0,0.010821]
[1767750621579,0.09890036,92470.0,92452.0,0.010822]
[1767750621776,0.09890036,92466.0,92451.0,0.09204]
[1767750622174,0.10971936,92473.0,92451.0,0.09204]
[1767750623078,0.01082,92471.0,92451.0,0.09204]
[1767750623280,0.10972136,92460.0,92443.0,0.010823]
[1767750623489,0.09890036,92460.0,92443.0,0.010823]
[1767750623683,0.10972236,92455.0,92438.0,0.010823]
[1767750623986,0.10972236,92455.0,92440.0,0.010823]
[1767750623987,0.09890036,92455.0,92440.0,0.010823]
[1767750624281,0.09890036,92455.0,92439.0,0.09204]
[1767750624486,0.09890036,92455.0,92439.0,0.010823]
[1767750624788,0.09890036,92455.0,92441.0,0.010823]
[1767750625586,0.09890036,92455.0,92438.0,0.102863]
[1767750626171,0.10972236,92454.0,92438.0,0.102863]
[1767750626479,0.09204,92464.0,92435.0,0.09204]
[1767750626480,0.09890036,92447.0,92435.0,0.09204]
[1767750626684,0.09890036,92447.0,92434.0,0.102864]
[1767750626890,0.010822,92451.0,92434.0,0.102864]
[1767750627084,0.010822,92451.0,92434.0,0.09204]
[1767750627085,0.10972236,92451.0,92434.0,0.09204]
[1767750627285,0.10972236,92449.0,92434.0,0.09204]
[1767750627674,0.10972236,92449.0,92433.0,0.010824]
[1767750628288,0.00188518,92450.0,92430.0,0.09204]
[1767750628289,0.010822,92454.0,92437.0,0.09906216]
[1767750628491,0.010822,92452.0,92435.0,0.010824]
[1767750629077,0.01270718,92455.0,92437.0,0.010824]
[1767750629278,0.010822,92453.0,92434.0,0.010824]
[1767750630188,0.10004512,92464.0,92440.0,0.12314858]
[1767750630492,0.09204,92464.0,92446.0,0.010822]
[1767750630787,0.56004,92480.0,92454.0,0.02408642]
[1767750630788,0.00114476,92480.0,92454.0,0.02408642]
[1767750631087,0.1932108,92485.0,92472.0,0.12314858]
[1767750631088,0.09204,92485.0,92472.0,0.12314858]
[1767750631291,0.09204,92494.0,92478.0,0.010819]
[1767750631493,0.19180274,92498.0,92481.0,0.010818]
[1767750631683,0.09204,92498.0,92481.0,0.010818]
[1767750631886,0.1932108,92507.0,92481.0,0.010818]
[1767750631887,0.00086238,92510.0,92482.0,0.02402841]
[1767750632186,0.010813,92528.0,92478.0,0.09204]
[1767750632187,0.01260249,92494.0,92478.0,0.09204]
[1767750632486,0.010817,92498.0,92478.0,0.09204]
[1767750632785,0.010817,92496.0,92478.0,0.09204]
[1767750632984,0.010818,92487.0,92468.0,0.09492398]
[1767750633190,0.010818,92487.0,92469.0,0.09204]
[1767750633783,0.008318,92487.0,92469.0,0.09204]
[1767750635190,0.00178549,92489.0,92469.0,0.09204]
[1767750635588,0.09204,92494.0,92479.0,0.010819]
[1767750635785,0.09204,92494.0,92477.0,0.09492398]
[1767750636091,0.010817,92493.0,92477.0,0.09492398]
[1767750636490,0.09204,92494.0,92477.0,0.09492398]
[1767750636688,0.09204,92494.0,92470.0,0.02402841]
[1767750636689,0.010818,92488.0,92470.0,0.11895239]
[1767750636892,0.010818,92486.0,92471.0,0.09492398]
[1767750637088,0.010818,92484.0,92470.0,0.092]
[1767750637793,0.010819,92480.0,92470.0,0.092]
[1767750638097,0.010819,92477.0,92459.0,0.09492398]
[1767750638296,0.010819,92477.0,92463.0,0.092]
[1767750641288,0.010819,92477.0,92460.0,0.10574498]
[1767750641487,0.010819,92480.0,92461.0,0.092]
[1767750641695,0.010819,92479.0,92461.0,0.18692398]
[1767750641887,0.010819,92477.0,92461.0,0.18692398]
[1767750642087,0.010819,92480.0,92463.0,0.09492398]
[1767750642998,0.010818,92483.0,92463.0,0.11895239]
[1767750643200,0.010819,92481.0,92464.0,0.10574398]
[1767750643697,0.09993821,92486.0,92464.0,0.09492398]
[1767750644095,0.09993821,92486.0,92464.0,0.18692398]
[1767750644897,0.010819,92480.0,92466.0,0.09492398]
[1767750646790,0.010818,92483.0,92466.0,0.09492398]
[1767750646991,0.010819,92481.0,92466.0,0.09492398]
[1767750647299,0.010819,92479.0,92466.0,0.09492398]
[1767750647699,0.010819,92479.0,92464.0,0.092]
[1767750647994,0.010819,92479.0,92465.0,0.09492398]
[1767750648192,0.09204,92494.0,92469.0,0.11895239]
[1767750648399,0.010818,92482.0,92471.0,0.09492398]
[1767750648698,0.010819,92480.0,92465.0,0.01082]
[1767750649097,0.010819,92480.0,92465.0,0.10282]
[1767750649399,0.010818,92485.0,92465.0,0.092]
[1767750650203,0.010818,92485.0,92469.0,0.01082]
[1767750650400,0.010818,92489.0,92465.0,0.04092]
[1767750650601,0.12512206,92493.0,92470.0,0.01082]
[1767750650903,0.010818,92485.0,92470.0,0.00975]
[1767750651499,0.010818,92485.0,92468.0,0.02852239]
[1767750651998,0.09993821,92498.0,92468.0,0.02852239]
[1767750652201,0.010818,92487.0,92465.0,0.04092]
[1767750652700,0.010818,92487.0,92465.0,0.00565]
[1767750652900,0.010818,92489.0,92473.0,0.010819]
[1767750653100,0.010818,92488.0,92473.0,0.010819]
[1767750653303,0.010818,92486.0,92471.0,0.01082]
[1767750654300,0.102817,92497.0,92460.0,0.11895239]
[1767750654301,0.010819,92479.0,92460.0,0.11895239]
[1767750654504,0.12550968,92483.0,92468.0,0.01082]
[1767750654698,0.09993821,92483.0,92468.0,0.01082]
[1767750655301,0.010819,92480.0,92468.0,0.01082]
[1767750655606,0.09993821,92483.0,92465.0,0.01082]
[1767750655901,0.010819,92480.0,92467.0,0.01082]
[1767750656304,0.010819,92480.0,92467.0,0.03484841]
[1767750657204,0.02557147,92485.0,92465.0,0.09492398]
[1767750657391,0.024391,92485.0,92465.0,0.12977239]
[1767750657597,0.010819,92481.0,92467.0,0.01082]
[1767750658103,0.010819,92481.0,92465.0,0.08192239]
[1767750658505,0.010819,92479.0,92465.0,0.08192239]
[1767750658810,0.010819,92479.0,92466.0,0.02579175]
[1767750659104,0.010818,92482.0,92466.0,0.01082]
[1767750659300,0.010818,92482.0,92467.0,0.01082]
[1767750659495,0.010818,92482.0,92461.0,0.00282]
[1767750659694,0.010819,92480.0,92461.0,0.00282]
[1767750659894,0.010819,92480.0,92461.0,0.00194]
[1767750660701,0.010819,92480.0,92463.0,0.09294064]
[1767750660904,0.09993821,92486.0,92463.0,0.09294064]
[1767750661107,0.010819,92480.0,92464.0,0.02579175]
[1767750661405,0.09993821,92486.0,92468.0,0.01082]
[1767750662090,0.010817,92490.0,92462.0,0.1198476]
[1767750662296,0.09839049,92474.0,92462.0,0.092]
[1767750662700,0.01082,92469.0,92454.0,0.0386696]
[1767750662897,0.09839049,92472.0,92455.0,0.092]
[1767750663099,0.09839049,92471.0,92456.0,0.092]
[1767750663407,0.010821,92462.0,92446.0,0.010822]
[1767750663606,0.010821,92456.0,92447.0,0.092]
[1767750663792,0.010821,92459.0,92444.0,0.092]
[1767750663994,0.010821,92459.0,92445.0,0.010823]
[1767750664199,0.10921149,92459.0,92445.0,0.010823]
[1767750664901,0.09839049,92459.0,92448.0,0.010822]
[1767750665102,0.09839049,92459.0,92441.0,0.1198476]
[1767750665295,0.09839049,92459.0,92450.0,0.010822]
[1767750665901,0.09839049,92449.0,92441.0,0.06789]
[1767750666316,0.09839049,92449.0,92435.0,0.092]
[1767750667001,0.010823,92446.0,92435.0,0.092]
[1767750667204,0.1273078,92443.0,92425.0,0.010825]
[1767750667406,0.092,92456.0,92423.0,0.092]
[1767750667407,0.10921349,92440.0,92423.0,0.092]
[1767750667604,0.09839049,92440.0,92423.0,0.092]
[1767750668312,0.09839049,92440.0,92425.0,0.010825]
[1767750668502,0.010823,92439.0,92423.0,0.102825]
[1767750668903,0.09839049,92440.0,92425.0,0.010825]
[1767750670010,0.09839049,92440.0,92427.0,0.010825]
[1767750670200,0.09839049,92440.0,92423.0,0.102825]
[1767750670506,0.09839049,92440.0,92425.0,0.010825]
[1767750671811,0.09839049,92440.0,92427.0,0.010825]
[1767750672011,0.02824332,92443.0,92427.0,0.010825]
[1767750672311,0.010823,92441.0,92427.0,0.010825]
[1767750673113,0.01793079,92449.0,92433.0,0.0278476]
[1767750673406,0.010821,92457.0,92440.0,0.0386706]
[1767750673906,0.09204,92461.0,92451.0,0.010822]
[1767750674108,0.010819,92473.0,92452.0,0.0278476]
[1767750674308,0.01082,92471.0,92452.0,0.0278476]
[1767750674608,0.02828078,92471.0,92453.0,0.010822]
[1767750674811,0.01082,92468.0,92453.0,0.010822]
[1767750675002,0.01082,92468.0,92452.0,0.0278476]
[1767750675511,0.010821,92463.0,92444.0,0.010823]
[1767750675709,0.10921149,92463.0,92445.0,0.09204]
[1767750676103,0.10921149,92463.0,92446.0,0.010823]
[1767750677713,0.09839049,92463.0,92445.0,0.09204]
[1767750677908,0.010821,92456.0,92440.0,0.010823]
[1767750678110,0.10921249,92454.0,92437.0,0.010824]
[1767750678306,0.02828078,92471.0,92427.0,0.09093787]
[1767750678307,0.09839049,92450.0,92438.0,0.09204]
[1767750678614,0.09839049,92450.0,92438.0,0.010823]
[1767750678802,0.09839049,92450.0,92437.0,0.09204]
[1767750678803,0.09839049,92450.0,92440.0,0.010823]
[1767750679003,0.09839049,92450.0,92437.0,0.067143]
[1767750679907,0.09839049,92450.0,92437.0,0.077967]
[1767750680213,0.09839049,92450.0,92439.0,0.010823]
[1767750680409,0.09839049,92457.0,92441.0,0.010823]
[1767750680613,0.010821,92456.0,92441.0,0.010823]
[1767750680814,0.10921149,92456.0,92441.0,0.010823]
[1767750681914,0.10921149,92456.0,92437.0,0.067143]
[1767750681915,0.09839049,92456.0,92443.0,0.010823]
[1767750682414,0.09839049,92456.0,92445.0,0.010823]
[1767750682914,0.09839049,92456.0,92441.0,0.007423]
[1767750683713,0.09839049,92456.0,92443.0,0.010823]
[1767750684113,0.09839049,92456.0,92437.0,0.0978536]
[1767750684315,0.09839049,92456.0,92437.0,0.0968136]
[1767750684611,0.09839049,92463.0,92438.0,0.09093787]
[1767750684818,0.09204,92464.0,92446.0,0.010822]
[1767750684819,0.010821,92461.0,92446.0,0.010822]
[1767750685114,0.19043049,92464.0,92443.0,0.09080987]
[1767750685310,0.010821,92460.0,92437.0,0.09204]
[1767750685513,0.02891731,92457.0,92437.0,0.00743]
[1767750685714,0.09839049,92453.0,92438.0,0.09204]
[1767750685914,0.09839049,92453.0,92439.0,0.09204]
[1767750686116,0.10921149,92463.0,92449.0,0.010822]
[1767750686315,0.010821,92461.0,92446.0,0.010822]
[1767750686709,0.09839049,92449.0,92441.0,0.09204]
[1767750686906,0.010821,92459.0,92442.0,0.0278476]
[1767750687116,0.10921149,92462.0,92448.0,0.010822]
[1767750687320,0.010821,92460.0,92445.0,0.010823]
[1767750687619,0.010821,92456.0,92442.0,0.010823]
[1767750687804,0.09839049,92457.0,92441.0,0.09204]
[1767750688004,0.010822,92453.0,92440.0,0.102863]
[1767750688207,0.010822,92453.0,92440.0,0.010823]
[1767750688409,0.09204,92464.0,92440.0,0.09093787]
[1767750688610,0.010821,92463.0,92450.0,0.010822]
[1767750688821,0.010821,92463.0,92447.0,0.010822]
[1767750689014,0.010821,92461.0,92447.0,0.010822]
[1767750689317,0.010821,92461.0,92442.0,0.00175987]
[1767750689612,0.09839049,92456.0,92442.0,0.010823]
[1767750689818,0.09839049,92456.0,92443.0,0.09204]
[1767750690008,0.09839049,92456.0,92444.0,0.010823]
[1767750690516,0.09839049,92456.0,92444.0,0.005903]
[1767750690717,0.10921249,92455.0,92443.0,0.08971]
[1767750691713,0.10921249,92455.0,92441.0,0.010823]
[1767750691917,0.10921249,92455.0,92442.0,0.09204]
[1767750693214,0.09982367,92449.0,92435.0,0.010824]
[1767750693419,0.010823,92442.0,92434.0,0.09204]
[1767750693720,0.13300633,92437.0,92407.0,0.07841167]
[1767750693920,0.09982367,92433.0,92419.0,0.010826]
[1767750694219,0.09982367,92433.0,92419.0,0.102866]
[1767750694515,0.09982367,92445.0,92419.0,0.09204]
[1767750694718,0.010823,92441.0,92419.0,0.09204]
[1767750694921,0.11064667,92441.0,92419.0,0.09204]
[1767750695220,0.09982367,92441.0,92428.0,0.010825]
[1767750695417,0.09982367,92441.0,92430.0,0.010824]
[1767750695910,0.09982367,92447.0,92436.0,0.010824]
[1767750696110,0.09982367,92447.0,92424.0,0.03537751]
[1767750696513,0.09982367,92447.0,92436.0,0.010824]
[1767750697925,0.14382933,92447.0,92432.0,0.010824]
[1767750698421,0.09982367,92446.0,92432.0,0.010824]
[1767750699322,0.11064667,92444.0,92431.0,0.010824]
[1767750700123,0.09982367,92444.0,92433.0,0.010824]
[1767750700427,0.09982367,92444.0,92430.0,0.010824]
[1767750701728,0.010823,92443.0,92430.0,0.010824]
[1767750701921,0.09982367,92442.0,92430.0,0.010824]
[1767750702113,0.09982367,92438.0,92429.0,0.00216383]
[1767750704122,0.010823,92446.0,92432.0,0.010824]
[1767750704123,0.09982367,92445.0,92432.0,0.010824]
[1767750704424,0.09982367,92445.0,92434.0,0.010824]
[1767750705025,0.09982367,92445.0,92436.0,0.010824]
[1767750705208,0.09982367,92445.0,92433.0,0.010824]
[1767750705413,0.09982367,92441.0,92429.0,0.00216383]
[1767750705724,0.09982367,92439.0,92429.0,0.0020947]
[1767750706424,0.13300633,92439.0,92429.0,0.0020947]
[1767750706623,0.09982367,92438.0,92429.0,0.0020947]
[1767750706819,0.09982367,92438.0,92415.0,0.03537751]
[1767750706820,0.09982367,92429.0,92405.0,0.11012483]
[1767750707126,0.09982367,92429.0,92420.0,0.010826]
[1767750707316,0.09982367,92429.0,92419.0,0.0856169]
[1767750707621,0.09982367,92429.0,92420.0,0.010826]
[1767750708524,0.09982367,92429.0,92421.0,0.010825]
[1767750708825,0.09982367,92429.0,92419.0,0.0856169]
[1767750709024,0.03318266,92431.0,92426.0,0.010825]
[1767750709208,0.03318266,92446.0,92423.0,0.03537751]
[1767750709408,0.09204,92447.0,92427.0,0.03537751]
[1767750709611,0.010823,92446.0,92427.0,0.03537751]
[1767750710122,0.010823,92444.0,92427.0,0.03537751]
[1767750710322,0.010823,92445.0,92430.0,0.010824]
[1767750711024,0.010823,92446.0,92430.0,0.102864]
[1767750711221,0.09982367,92449.0,92430.0,0.102864]
[1767750711727,0.010823,92443.0,92430.0,0.102864]
[1767750713627,0.11064567,92454.0,92432.0,0.03537751]
[1767750713824,0.11064567,92454.0,92434.0,0.03537751]
[1767750714022,0.34324078,92471.0,92431.0,0.09432971]
[1767750714023,0.010821,92459.0,92435.0,0.03537751]
[1767750714216,0.11064467,92460.0,92444.0,0.010823]
[1767750714416,0.09982367,92460.0,92446.0,0.010823]
[1767750715335,0.11064467,92459.0,92443.0,0.010823]
[1767750715520,0.09982367,92457.0,92443.0,0.010823]
[1767750715720,0.09982367,92457.0,92445.0,0.010823]
[1767750718233,0.09982367,92457.0,92442.0,0.010823]
[1767750718437,0.09204,92462.0,92440.0,0.09204]
[1767750718438,0.09049314,92453.0,92440.0,0.09204]
[1767750718932,0.010822,92452.0,92440.0,0.09204]
[1767750719230,0.09049314,92453.0,92440.0,0.09204]
[1767750719434,0.09049314,92453.0,92440.0,0.102863]
[1767750719629,0.12641528,92458.0,92440.0,0.09204]